bitfinex/quotes_SOLUSD_20220302
["timestamp","ask_amount","ask_price","bid_price","bid_amount"]
[1646234131817,61.66911625,102.07,101.92,11.73]
[1646234132617,14.7151,102.04,101.92,11.73]
[1646234132820,45.33837013,102.03,101.92,11.73]
[1646234133416,22.7657,102.08,101.93,8.54904003]
[1646234133618,6.0,102.07,101.94,11.73]
[1646234133818,37.4746,102.08,101.96,98.75]
[1646234134020,22.7657,102.08,101.97,11.73]
[1646234134720,42.7018684,102.12,101.98,98.75]
[1646234134921,6.0,102.11,101.99,111.29351359]
[1646234135126,6.0,102.11,101.99,110.48]
[1646234135526,24.691,102.12,101.99,113.02904003]
[1646234135722,0.49193095,102.13,102.03,98.75]
[1646234135922,0.49193095,102.13,102.05,98.75]
[1646234136223,0.49193095,102.13,102.05,110.48]
[1646234136425,0.49193095,102.13,102.06,0.46425485]
[1646234136623,0.49193095,102.13,102.07,98.75]
[1646234136823,0.49193095,102.13,102.07,11.73]
[1646234137223,0.49193095,102.13,102.07,110.48]
[1646234137422,0.49193095,102.13,102.07,11.73]
[1646234138823,1.89684245,102.2,102.07,110.48]
[1646234139024,73.3704015,102.21,102.07,125.4208]
[1646234139025,88.7883344,102.21,102.07,125.4208]
[1646234139224,72.0915,102.21,102.08,6.4858752]
[1646234139425,22.91588532,102.24,102.09,11.73]
[1646234139631,49.69762798,102.23,102.1,6.61467976]
[1646234139825,49.69762798,102.23,102.11,11.73]
[1646234140025,49.69762798,102.23,102.12,6.61467976]
[1646234140224,51.54333333,102.23,102.13,11.73]
[1646234140426,51.54333333,102.23,102.14,6.0]
[1646234140634,6.0,102.22,102.14,6.0]
[1646234140828,54.15693616,102.21,102.14,6.0]
[1646234141130,54.15693616,102.21,102.13,26.4129]
[1646234141727,54.15693616,102.21,102.1,51.49194003]
[1646234141728,53.72788871,102.19,101.76,478.57448251]
[1646234141931,58.78,102.03,101.89,10.0]
[1646234142129,5.02284106,101.99,101.84,10.23778804]
[1646234142328,5.02284106,101.99,101.85,285.71584159]
[1646234142529,0.85218157,101.99,101.85,297.44584159]
[1646234142727,0.85218157,101.99,101.86,39.82043683]
[1646234142927,5.0,101.98,101.85,122.28008304]
[1646234143127,20.0,101.66,101.44,26.50209039]
[1646234143329,22.49848361,101.66,101.52,15.1025]
[1646234143527,20.0,101.66,101.53,3.936]
[1646234143728,22.65508445,101.71,101.53,180.0]
[1646234143927,22.65508445,101.71,101.54,62.1560331]
[1646234144129,22.65508445,101.71,101.56,5.0]
[1646234144327,22.65508445,101.71,101.57,49.32750773]
[1646234144328,22.15508445,101.71,101.57,49.32750773]
[1646234144528,18.44259999,101.78,101.59,170.0]
[1646234144733,20.31606193,101.78,101.6,53.54619136]
[1646234145427,14.7622,101.77,101.6,53.54619136]
[1646234145634,6.0,101.76,101.62,43.71514937]
[1646234146129,6.0,101.76,101.63,3.932]
[1646234146329,6.0,101.76,101.64,51.25528799]
[1646234146831,20.40073287,101.78,101.64,51.25528799]
[1646234147233,22.51203523,101.78,101.64,51.25528799]
[1646234147430,9.932,101.77,101.64,51.25528799]
[1646234147932,0.97,101.76,101.53,11.73]
[1646234148136,0.97,101.75,101.53,16.73]
[1646234148332,3.932,101.77,101.53,16.73]
[1646234148535,3.932,101.77,101.54,2.54904003]
[1646234148732,20.66252287,101.78,101.55,75.97208538]
[1646234148935,3.934,101.77,101.56,0.55007638]
[1646234149132,6.04530236,101.81,101.57,15.664]
[1646234149334,3.932,101.82,101.61,5.0]
[1646234149536,3.932,101.82,101.62,75.69971919]
[1646234149737,4.902,101.87,101.63,11.73]
[1646234149933,3.932,101.87,101.64,49.39938048]
[1646234150133,3.932,101.87,101.65,11.73]
[1646234150336,3.932,101.87,101.66,51.9927912]
[1646234150637,5.98322872,101.87,101.68,57.27737892]
[1646234150835,3.932,101.87,101.7,49.422745]
[1646234151037,2.11130236,101.87,101.7,49.672745]
[1646234151234,2.11130236,101.87,101.72,54.45364745]
[1646234151435,3.928,101.86,101.74,44.47839964]
[1646234151637,0.97,101.87,101.74,44.47839964]
[1646234151837,3.928,101.86,101.74,44.47839964]
[1646234152038,24.69330236,101.9,101.74,44.72839964]
[1646234152241,24.72841366,101.9,101.76,60.42285744]
[1646234152439,24.72841366,101.9,101.78,43.09227052]
[1646234152643,24.72841366,101.9,101.8,47.63886253]
[1646234154740,2.10582724,101.94,101.8,158.11886253]
[1646234154939,3.922,101.98,101.82,48.76722503]
[1646234155138,3.924,101.99,101.84,57.66617103]
[1646234155338,11.58763285,102.0,101.84,57.66617103]
[1646234155539,11.58763285,102.0,101.86,56.78693822]
[1646234155738,0.97,101.95,101.83,6.0]
[1646234155942,0.97,101.95,101.76,6.0]
[1646234156138,0.97,101.93,101.69,14.5162]
[1646234156339,0.97,101.93,101.71,100.76776596]
[1646234156541,0.97,101.93,101.73,98.75]
[1646234156739,24.07398386,101.94,101.74,57.6486529]
[1646234156938,26.89550868,101.96,101.76,56.02415846]
[1646234157138,6.0,101.95,101.78,57.91903241]
[1646234157340,6.0,101.95,101.8,59.4279812]
[1646234157538,8.10582724,101.95,101.8,59.4279812]
[1646234157739,33.95976748,101.95,101.8,59.4279812]
[1646234157939,32.98976748,101.95,101.8,59.4279812]
[1646234158339,33.95976748,101.95,101.8,59.4279812]
[1646234158540,32.98976748,101.95,101.8,59.4279812]
[1646234158939,30.88394024,101.95,101.8,59.4279812]
[1646234159139,3.87,101.94,101.8,59.4279812]
[1646234159358,58.78,101.93,101.8,59.4279812]
[1646234159558,79.01322983,101.93,101.74,3.926]
[1646234159761,59.75,101.91,101.69,15.657]
[1646234159961,170.23,101.91,101.69,15.657]
[1646234160159,0.97,101.87,101.69,11.73]
[1646234160359,3.87,101.88,101.69,11.73]
[1646234160559,16.41074072,101.88,101.7,64.90526343]
[1646234160764,3.912,101.92,101.71,0.52400896]
[1646234160963,0.97,101.93,101.72,3.928]
[1646234161163,0.97,101.92,101.73,55.16130166]
[1646234161363,0.97,101.9,101.73,55.16130166]
[1646234161564,3.928,101.89,101.73,55.16130166]
[1646234161766,28.03568279,101.89,101.73,55.16130166]
[1646234161962,29.53941104,101.89,101.73,55.16130166]
[1646234162162,43.45816289,101.91,101.73,55.16130166]
[1646234162365,14.7453,101.89,101.73,55.16130166]
[1646234162566,16.89004322,101.91,101.75,47.93687414]
[1646234162764,3.928,101.9,101.75,48.18687414]
[1646234162963,51.28414046,101.93,101.75,48.18687414]
[1646234163162,24.97282125,101.93,101.75,48.18687414]
[1646234163364,32.35137511,101.95,101.77,150.16453872]
[1646234163564,20.659566,101.95,101.79,49.98197024]
[1646234163764,3.896,101.95,101.79,49.98197024]
[1646234163972,6.0,101.94,101.79,49.98197024]
[1646234164163,6.0,101.94,101.81,51.07868344]
[1646234164365,44.46483493,101.97,101.81,51.32868344]
[1646234164565,44.46483493,101.97,101.83,51.07073655]
[1646234165168,23.13768279,101.99,101.84,11.73]
[1646234165365,23.13768279,101.99,101.86,55.2997038]
[1646234165565,24.43296157,102.01,101.88,44.85265144]
[1646234165766,24.43296157,102.01,101.9,57.26440553]
[1646234166265,24.43296157,102.01,101.76,39.0356]
[1646234166266,84.18296157,102.01,101.8,5.0]
[1646234166564,85.09131921,102.0,101.81,17.73]
[1646234166763,86.64743866,102.0,101.81,17.98]
[1646234166964,6.0,101.99,101.81,20.52904003]
[1646234167166,49.65852145,102.0,101.81,20.52904003]
[1646234167167,20.82108279,102.0,101.82,56.71413572]
[1646234167364,22.8769,102.01,101.83,19.88250637]
[1646234167565,24.71707769,102.01,101.84,150.48516101]
[1646234167770,22.8769,102.01,101.85,17.73]
[1646234167966,27.8769,102.01,101.86,50.91856802]
[1646234168166,27.8769,102.01,101.87,17.73]
[1646234168366,27.8769,102.01,101.88,54.97158659]
[1646234168570,27.8769,102.01,101.89,6.0]
[1646234168767,29.56080675,102.01,101.9,49.46843198]
[1646234168968,30.53080675,102.01,101.9,49.46843198]
[1646234169167,6.0,102.0,101.9,49.46843198]
[1646234171667,5.0,102.01,101.92,98.75]
[1646234171869,5.0,102.01,101.93,48.55039185]
[1646234172868,6.0,102.0,101.93,48.55039185]
[1646234173071,1.2789015,102.03,101.93,48.55039185]
[1646234173268,6.0,102.02,101.93,48.55039185]
[1646234173872,6.2789015,102.04,101.93,48.55039185]
[1646234174070,1.2789015,102.02,101.93,48.55039185]
[1646234174269,2.2489015,102.0,101.8,64.78529144]
[1646234174471,16.0032015,102.01,101.81,11.73]
[1646234174669,1.2789015,101.99,101.81,11.73]
[1646234174871,1.2789015,101.98,101.81,11.73]
[1646234175273,5.0,101.96,101.82,43.54418658]
[1646234176072,5.0,101.96,101.82,46.09322661]
[1646234176372,16.0090015,101.97,101.82,43.54418658]
[1646234176571,1.2789015,101.98,101.85,98.75]
[1646234176771,5.0,101.96,101.85,98.75]
[1646234176972,5.0,101.96,101.86,43.14209886]
[1646234177172,1.2789015,102.0,101.87,278.75]
[1646234177372,1.2789015,102.02,101.88,142.83541464]
[1646234177572,1.2789015,102.02,101.88,150.02441464]
[1646234177774,1.2789015,102.02,101.9,46.45802986]
[1646234178773,1.2789015,102.03,101.9,46.45802986]
[1646234180277,1.2789015,102.02,101.92,60.92573518]
[1646234180677,1.2789015,102.03,101.92,60.92573518]
[1646234183677,1.2789015,102.03,101.94,58.99277639]
[1646234183878,1.2789015,102.04,101.94,168.91645715]
[1646234184077,6.0,102.03,101.94,169.16645715]
[1646234184278,6.2789015,102.05,101.96,98.75]
[1646234184480,1.34298627,102.07,101.98,98.75]
[1646234184678,11.84891632,102.11,101.99,160.81984521]
[1646234184879,9.274,102.11,101.99,50.33984521]
[1646234185179,9.274,102.11,101.99,62.06984521]
[1646234185678,2.57491632,102.12,101.99,62.06984521]
[1646234186081,8.57491632,102.11,101.99,62.06984521]
[1646234186284,5.43625591,102.1,101.99,62.06984521]
[1646234186479,7.57491632,102.09,101.99,62.06984521]
[1646234186681,2.57491632,102.09,101.99,62.06984521]
[1646234186879,2.57491632,102.11,101.99,62.06984521]
[1646234187480,8.01132224,102.11,101.99,62.06984521]
[1646234188079,6.0,102.1,101.99,62.06984521]
[1646234188484,8.57491632,102.1,101.99,62.06984521]
[1646234188680,6.0,102.1,101.99,62.06984521]
[1646234189281,6.0,102.1,101.99,11.73]
[1646234189482,6.0,102.1,101.92,20.39653948]
[1646234189483,2.57491632,102.09,101.94,11.73]
[1646234189683,63.21033547,102.08,101.92,11.73]
[1646234189885,66.79258912,102.07,101.92,11.73]
[1646234190083,62.96668008,102.07,101.92,11.73]
[1646234190282,2.57491632,102.07,101.93,46.08621621]
[1646234190483,2.57491632,102.07,101.95,152.65401562]
[1646234190685,5.43770478,102.08,101.97,158.12783269]
[1646234190883,2.57491632,102.09,101.97,71.10783269]
[1646234191087,6.0,102.1,101.97,71.10783269]
[1646234191284,5.0,102.09,101.97,71.10783269]
[1646234191485,86.50145047,102.09,101.97,71.10783269]
[1646234191689,60.38906544,102.09,101.97,71.10783269]
[1646234191886,62.96398176,102.09,101.97,71.10783269]
[1646234192085,62.96398176,102.09,101.91,47.3762]
[1646234192086,0.00537724,102.11,101.95,58.78]
[1646234192286,0.00537724,102.18,102.0,0.70409177]
[1646234192485,74.81458499,102.25,102.02,101.53797556]
[1646234192686,14.6923,102.2,102.03,20.14321187]
[1646234192985,16.05459146,102.2,102.04,51.00606994]
[1646234193185,0.97,102.19,102.04,51.00606994]
[1646234193785,3.908,102.19,102.04,62.73606994]
[1646234193986,48.9873,102.2,102.06,46.04312549]
[1646234194186,4.881,102.22,102.08,60.49581942]
[1646234194386,0.97,102.21,102.08,60.49581942]
[1646234194587,5.0,102.18,101.99,98.75]
[1646234194786,14.6996,102.15,102.01,14.6974]
[1646234194987,48.9985,102.18,102.02,118.79778221]
[1646234195187,3.916,102.21,102.03,17.73]
[1646234195388,96.72991604,102.22,102.03,11.73]
[1646234195588,111.58511604,102.22,102.04,56.7657616]
[1646234195789,24.9222,102.22,102.05,0.5977285]
[1646234196091,6.0,102.21,102.08,156.32288995]
[1646234196289,6.0,102.21,102.09,118.47468141]
[1646234196491,6.0,102.21,102.1,54.93515663]
[1646234196691,6.0,102.21,102.1,66.66515663]
[1646234197293,6.0,102.21,102.1,81.35135663]
[1646234197493,6.0,102.21,102.1,66.66515663]
[1646234197891,6.0,102.21,102.1,54.93515663]
[1646234198092,6.0,102.21,102.08,6.099]
[1646234198602,5.0,102.16,102.08,6.099]
[1646234198792,6.0,102.21,102.08,6.099]
[1646234198993,20.6914,102.21,102.09,52.44655532]
[1646234199393,20.6914,102.21,102.08,6.099]
[1646234199595,5.0,102.16,102.08,6.099]
[1646234200192,12.31633347,102.21,102.08,6.099]
[1646234200393,12.31633347,102.21,102.09,54.55727595]
[1646234200593,5.0,102.15,102.1,0.55562889]
[1646234200795,5.0,102.15,102.09,54.55727595]
[1646234201295,5.0,102.15,102.08,6.099]
[1646234201698,0.97,102.17,102.08,6.099]
[1646234201896,12.58588393,102.17,102.08,6.099]
[1646234202095,71.36588393,102.17,102.08,6.099]
[1646234202298,58.78,102.14,102.08,6.099]
[1646234202497,5.0,102.09,101.98,11.73]
[1646234203296,5.0,102.09,101.99,68.40871832]
[1646234203496,14.703,102.12,102.01,52.6481482]
[1646234203898,0.97,102.15,102.01,52.6481482]
[1646234204097,6.0,102.16,102.03,47.03086338]
[1646234204395,14.6991,102.15,102.03,47.03086338]
[1646234204595,14.6991,102.15,102.03,145.78086338]
[1646234204797,11.0,102.16,102.03,157.51086338]
[1646234205098,5.0,102.16,102.05,98.75]
[1646234205295,5.0,102.16,102.06,180.93427619]
[1646234205497,14.6923,102.19,102.06,180.93427619]
[1646234206098,14.6923,102.19,102.06,82.18427619]
[1646234206401,5.0,102.16,102.06,82.18427619]
[1646234207096,14.6896,102.21,102.09,113.4382]
[1646234207296,14.6896,102.21,102.1,50.90523452]
[1646234207698,24.9222,102.22,102.11,11.73]
[1646234207899,1.22522247,102.26,102.12,52.19816652]
[1646234208101,3.915,102.27,102.13,116.48]
[1646234208296,14.6761,102.31,102.15,98.75]
[1646234208498,14.6761,102.31,102.17,45.08963403]
[1646234208799,14.6761,102.31,102.19,58.1630724]
[1646234209199,14.6761,102.31,102.2,6.0]
[1646234209397,20.26519787,102.32,102.21,51.40855347]
[1646234209596,20.26519787,102.32,102.22,6.0]
[1646234209797,20.26519787,102.32,102.23,49.53167997]
[1646234210597,5.0,102.3,102.23,49.53167997]
[1646234210797,5.0,102.3,102.2,14.674]
[1646234211201,25.26519787,102.3,102.18,11.73]
[1646234211398,25.26519787,102.3,102.14,48.9287]
[1646234211399,26.52136247,102.3,102.15,11.73]
[1646234211604,21.52136247,102.3,102.15,11.73]
[1646234211798,21.52136247,102.3,102.16,50.29576876]
[1646234212000,20.26519787,102.3,102.16,50.29576876]
[1646234212199,5.0,102.27,102.16,50.29576876]
[1646234212400,6.0,102.26,102.16,50.29576876]
[1646234213499,14.6802,102.28,102.16,50.29576876]
[1646234213698,11.0,102.27,102.16,50.29576876]
[1646234214103,11.0,102.27,102.15,11.73]
[1646234214104,21.85621802,102.26,102.13,22.6274]
[1646234214499,23.13308978,102.26,102.07,11.73]
[1646234214700,23.13308978,102.26,102.06,29.6092]
[1646234214701,20.32438512,102.25,102.06,31.95878651]
[1646234215001,32.14828961,102.25,102.07,59.9099613]
[1646234215199,32.14828961,102.25,102.08,98.75]
[1646234215200,34.23242236,102.24,102.08,98.75]
[1646234215522,5.0,102.2,102.07,61.89042807]
[1646234215702,5.0,102.2,102.06,11.73]
[1646234216000,5.0,102.2,101.99,124.23340192]
[1646234216001,21.85621802,102.19,101.99,124.23340192]
[1646234216300,96.57708497,102.19,101.99,25.48340192]
[1646234216502,14.45525285,102.18,101.99,25.55888151]
[1646234216706,6.0,102.17,102.0,54.67832044]
[1646234216901,6.0,102.17,102.0,56.99881978]
[1646234217102,5.0,102.14,102.0,56.99881978]
[1646234217303,14.7003,102.13,102.0,54.67832044]
[1646234217502,14.7003,102.13,102.01,6.0]
[1646234217801,14.7003,102.13,102.02,48.7470599]
[1646234218201,73.4803,102.13,101.99,23.2598]
[1646234218403,14.7058,102.09,101.99,23.2598]
[1646234219003,49.0192,102.12,101.99,23.2598]
[1646234219205,49.0192,102.12,102.0,59.87041352]
[1646234219404,50.55045601,102.12,102.0,59.87041352]
[1646234220005,14.7063,102.09,102.0,59.87041352]
[1646234220205,68.54361917,102.15,102.0,158.62041352]
[1646234220404,6.0,102.14,102.01,0.72739451]
[1646234220614,6.0,102.14,102.02,57.65281354]
[1646234220808,6.0,102.14,102.04,45.73192868]
[1646234221508,6.0,102.14,102.04,144.48192868]
[1646234221708,6.0,102.17,102.04,45.73192868]
[1646234221908,6.0,102.17,102.04,45.98192868]
[1646234222308,23.7141,102.19,102.07,98.75]
[1646234222507,23.7141,102.19,102.08,155.71106292]
[1646234223134,23.7141,102.19,102.08,56.96106292]
[1646234223534,6.0,102.18,102.08,56.96106292]
[1646234223734,20.6932,102.18,102.08,56.96106292]
[1646234224135,22.31072438,102.17,102.08,56.96106292]
[1646234224338,21.81072438,102.17,102.08,56.96106292]
[1646234224636,45.98149105,102.19,102.08,56.96106292]
[1646234224934,14.6981,102.15,102.08,56.96106292]
[1646234226336,14.6947,102.17,102.08,56.96106292]
[1646234227338,5.0,102.16,102.04,14.6954]
[1646234227538,14.6999,102.13,101.99,25.20982268]
[1646234227738,14.6999,102.13,102.0,17.73]
[1646234227939,6.0,102.12,102.0,17.73]
[1646234228339,14.6999,102.13,102.02,98.75]
[1646234228540,14.6999,102.13,102.03,53.17403297]
[1646234228740,14.6999,102.13,102.03,46.56109407]
[1646234228941,14.6999,102.13,102.0,11.73]
[1646234229241,74.66009342,102.13,101.99,23.2598]
[1646234229443,14.7059,102.09,101.99,23.2598]
[1646234229841,49.0196,102.12,101.99,23.2598]
[1646234230040,49.0196,102.12,102.0,52.86965301]
[1646234230644,49.0196,102.12,102.01,0.62822468]
[1646234230843,49.0196,102.12,102.02,45.19958199]
[1646234231041,14.7032,102.11,102.02,45.19958199]
[1646234231644,14.7032,102.11,102.03,0.47131346]
[1646234231843,14.7032,102.11,102.02,45.19958199]
[1646234232044,6.0,102.1,102.02,45.19958199]
[1646234232442,5.0,102.09,102.02,45.19958199]
[1646234232642,6.0,102.1,102.02,59.89868199]
[1646234232841,210.70215389,102.17,102.03,0.5185778]
[1646234233041,49.0054,102.14,102.02,45.19958199]
[1646234233241,54.0054,102.14,102.02,45.19958199]
[1646234233442,49.0054,102.14,102.02,45.19958199]
[1646234233642,49.0054,102.14,102.02,143.94958199]
[1646234234044,14.7013,102.12,102.02,45.19958199]
[1646234236144,6.0,102.11,102.03,0.60766482]
[1646234236344,14.7049,102.09,102.02,45.19958199]
[1646234237348,14.7049,102.09,102.03,0.63344596]
[1646234237543,14.7049,102.09,102.04,59.08088886]
[1646234238747,14.7049,102.09,101.99,37.9638]
[1646234238949,14.7049,102.09,101.99,136.7138]
[1646234239148,14.7029,102.11,101.99,38.2138]
[1646234239346,14.7029,102.11,101.99,49.6938]
[1646234239548,14.7029,102.11,101.99,49.9438]
[1646234239747,14.7029,102.11,102.0,46.70577015]
[1646234239748,5.0,102.1,102.0,46.70577015]
[1646234239950,5.0,102.1,102.01,14.7014]
[1646234240251,14.7004,102.12,102.02,52.33252761]
[1646234240448,58.78,102.14,101.99,23.2598]
[1646234240649,65.02152201,102.14,101.99,23.2598]
[1646234240852,49.0302,102.09,101.99,23.2598]
[1646234241052,79.90820912,102.12,101.99,23.2598]
[1646234241253,14.7108,102.05,101.99,23.2598]
[1646234241454,180.0,102.03,101.93,14.10402171]
[1646234241756,60.94993474,102.02,101.81,25.58998383]
[1646234241961,49.1046,101.94,101.79,14.7307]
[1646234242154,49.1046,101.94,101.78,14.5603]
[1646234242462,49.1046,101.94,101.75,322.1990563]
[1646234242463,14.7325,101.91,101.83,47.76969288]
[1646234242655,19.943165,101.95,101.83,47.76969288]
[1646234242954,5.0,101.98,101.83,134.85116422]
[1646234243157,6.0,101.97,101.84,6.90381853]
[1646234243355,6.0,101.97,101.85,48.01671159]
[1646234243754,20.7239,101.97,101.85,48.01671159]
[1646234244156,6.0,101.97,101.85,48.01671159]
[1646234244354,6.0,101.97,101.85,62.73891159]
[1646234244854,49.0797,101.99,101.86,0.46875495]
[1646234245058,14.7251,101.96,101.86,0.46875495]
[1646234245254,14.7251,101.96,101.85,62.73891159]
[1646234246057,14.7251,101.96,101.85,48.01671159]
[1646234246255,49.089,101.97,101.85,48.01671159]
[1646234246456,27.41290784,101.99,101.85,48.01671159]
[1646234246457,6.08354771,101.96,101.85,48.01671159]
[1646234246860,5.0,101.95,101.85,48.01671159]
[1646234247060,6.0,101.94,101.85,48.01671159]
[1646234247459,14.7295,101.93,101.85,48.01671159]
[1646234247858,6.0,101.94,101.85,48.01671159]
[1646234248058,6.0,101.95,101.85,48.01671159]
[1646234248260,5.0,101.94,101.85,48.01671159]
[1646234248458,6.0,101.95,101.85,48.01671159]
[1646234248660,14.7279,101.94,101.85,48.01671159]
[1646234248861,6.0,101.95,101.85,48.01671159]
[1646234249061,6.0,101.97,101.86,0.44132319]
[1646234249285,6.0,101.97,101.85,48.26671159]
[1646234249461,6.0,101.97,101.85,48.01671159]
[1646234249662,5.0,101.96,101.85,48.01671159]
[1646234249861,19.725,101.96,101.85,62.74001159]
[1646234251064,19.725,101.96,101.86,0.61703036]
[1646234251264,14.7265,101.95,101.87,55.94110104]
[1646234251464,5.0,101.96,101.87,55.94110104]
[1646234251465,27.55310757,101.98,101.87,55.94110104]
[1646234251665,5.0,101.95,101.87,55.94110104]
[1646234252065,64.78,101.94,101.79,24.4796]
[1646234252263,66.17143403,101.94,101.8,6.0]
[1646234252464,5.0,101.92,101.8,6.0]
[1646234252664,14.7323,101.91,101.8,20.7308]
[1646234253065,14.7323,101.91,101.81,60.01570158]
[1646234253675,60.30150379,101.94,101.81,60.01570158]
[1646234254169,5.0,101.91,101.81,60.01570158]
[1646234255068,14.7292,101.93,101.83,54.20719467]
[1646234255270,1.28291739,101.98,101.83,54.20719467]
[1646234255470,5.0,101.94,101.83,54.20719467]
[1646234255871,64.78,101.97,101.83,54.20719467]
[1646234256270,14.7292,101.93,101.83,68.93369467]
[1646234256470,5.0,101.94,101.83,54.20719467]
[1646234256793,60.11254312,101.95,101.83,54.20719467]
[1646234257197,85.02902112,101.94,101.83,54.20719467]
[1646234257403,14.7381,101.87,101.75,126.5909]
[1646234257593,49.1269,101.89,101.75,126.5909]
[1646234257594,49.1269,101.89,101.75,23.0145]
[1646234257796,79.53936449,101.9,101.74,8.928]
[1646234258002,87.734212,101.89,101.74,5.0]
[1646234258197,27.19690538,101.88,101.74,5.0]
[1646234258394,27.19690538,101.88,101.69,47.4442]
[1646234258395,85.97690538,101.88,101.75,48.93242043]
[1646234258695,125.48794851,101.87,101.75,48.93242043]
[1646234259095,43.3159642,101.87,101.75,48.93242043]
[1646234259298,12.50458527,101.87,101.75,48.93242043]
[1646234259594,5.0,101.81,101.75,48.93242043]
[1646234259994,11.53458527,101.87,101.75,48.93242043]
[1646234260194,6.0,101.86,101.75,48.93242043]
[1646234260897,46.8876,101.9,101.75,48.93242043]
[1646234261095,5.0,101.85,101.75,48.93242043]
[1646234261395,5.0,101.85,101.75,50.85141535]
[1646234261594,5.0,101.85,101.75,63.66952043]
[1646234261996,6.0,101.89,101.75,63.66952043]
[1646234262195,6.0,101.89,101.76,0.42787356]
[1646234262396,6.0,101.89,101.75,63.66952043]
[1646234262796,5.0,101.82,101.75,162.41952043]
[1646234262997,6.0,101.89,101.75,162.41952043]
[1646234263215,6.0,101.89,101.75,77.74423454]
[1646234263397,22.65853092,101.9,101.75,75.39952043]
[1646234263596,51.45344504,101.9,101.75,75.39952043]
[1646234264096,49.1429,101.87,101.75,48.93242043]
[1646234264298,25.51898186,101.89,101.75,48.93242043]
[1646234264499,5.0,101.84,101.75,48.93242043]
[1646234264698,48.17751278,101.89,101.75,48.93242043]
[1646234265099,106.95751278,101.89,101.75,48.93242043]
[1646234265301,49.1516,101.85,101.75,48.93242043]
[1646234265506,29.4318133,101.88,101.7,24.9646]
[1646234265507,59.75,101.87,101.7,24.9646]
[1646234265701,75.00174539,101.86,101.71,6.0]
[1646234265901,5.0,101.77,101.71,6.0]
[1646234266101,99.54135333,101.86,101.71,6.0]
[1646234266302,101.65118587,101.86,101.69,6.0]
[1646234266501,14.7486,101.81,101.7,42.77159915]
[1646234266700,14.7486,101.81,101.72,54.6356408]
[1646234266901,49.1619,101.83,101.72,54.6356408]
[1646234267104,6.0,101.82,101.72,54.6356408]
[1646234267302,5.0,101.75,101.72,54.6356408]
[1646234268109,58.78,101.8,101.66,14.7521]
[1646234268305,58.78,101.81,101.64,15.658]
[1646234268504,83.3554,101.82,101.65,159.58810906]
[1646234268705,24.19662328,101.84,101.67,159.76205494]
[1646234268706,23.32977899,101.84,101.67,159.76205494]
[1646234268904,24.992,101.85,101.69,98.75]
[1646234269207,24.992,101.85,101.7,50.99651797]
[1646234269404,24.992,101.85,101.71,98.75]
[1646234269604,24.992,101.85,101.72,142.82219018]
[1646234269902,24.992,101.85,101.72,44.07219018]
[1646234270305,166.97797411,101.87,101.72,44.07219018]
[1646234270504,14.7489,101.81,101.72,44.07219018]
[1646234270704,58.78,101.83,101.72,44.07219018]
[1646234270907,6.0,101.82,101.72,44.07219018]
[1646234271505,59.98577769,101.84,101.68,11.73]
[1646234271706,58.78,101.8,101.67,14.7511]
[1646234271908,60.17778721,101.8,101.64,6.47704003]
[1646234272104,85.6174497,101.8,101.64,3.928]
[1646234272308,112.20798062,101.8,101.64,3.928]
[1646234272505,1.39778721,101.8,101.65,45.73143364]
[1646234272709,0.97,101.79,101.67,98.75]
[1646234272907,18.3117,101.86,101.68,70.48823895]
[1646234273106,15.79290191,101.86,101.68,70.48823895]
[1646234273306,15.79290191,101.86,101.68,69.64015459]
[1646234273608,60.32028522,101.85,101.68,69.64015459]
[1646234273805,60.21467924,101.82,101.68,84.38645459]
[1646234274006,64.78,101.81,101.68,26.4763]
[1646234274205,64.78,101.81,101.64,3.928]
[1646234274206,0.97,101.78,101.64,3.928]
[1646234274405,11.76412347,101.8,101.64,3.928]
[1646234274605,37.60827422,101.8,101.64,3.928]
[1646234274805,14.7546,101.77,101.64,3.928]